[Event "4th Sabbiadoro-Master 2018"]
[Site "Lignano Sabbiadoro"]
[Date "2018.07.30"]
[Round "2.3"]
[White "Grigorian, Roudolph"]
[Black "Damia, Angelo"]
[Result "0-1"]
[ECO "C41"]
[WhiteElo "2146"]
[BlackElo "2313"]
[Annotator "NA"]
[PlyCount "112"]
[EventDate "2018.07.29"]
[EventType "swiss"]
[EventCountry "ITA"]
[SourceTitle "playchess.com"]
[Source "ChessBase"]
[SourceQuality "1"]
[TimeControl "5400+30"]

{[%evp 8,111,32,39,29,15,40,35,39,44,83,82,77,53,122,77,87,70,75,61,52,32767,32767,32767,45,41,29,50,49,0,59,28,55,32,47,40,46,33,69,45,58,45,45,43,42,31,38,33,23,7,36,32767,32767,32767,32767,32767,32767,32767,32767,32767,32767,32767,32767,32767,32767,32767,32767,32767,32767,32767,32767,32767,32767,32767,-314,-248,-287,-406,-588,32767,32767,-579,32767,-490,-734,-836,-704,32767,32767,-1863,-2373,32767,32767,32767,32767,-1373,-1263,32767,32767,32767,32767,32767,-29982,-29978,-29986,-29983]} 1. Nc3 {[%emt 0:09:30]} d6 {[%emt 0:03:00]} 2. e4 {[%emt 0:00:30]} Nf6 {[%emt 0:02:30]} 3. d4 {[%emt 0:00:30]} e5 {[%emt 0:00:30]} 4. Nge2 {[%emt 0:03:30]} exd4 {[%emt 0:02:30]} 5. Nxd4 {[%emt 0:00:30]} Nc6 {[%emt 0:00:00]} 6. Bf4 {[%emt 0:04:30]} Be7 {[%emt 0:02:00]} 7. Qd2 {[%emt 0:00:30]} O-O {[%emt 0:02:30] LiveBook: 191 Games} 8. O-O-O {[%emt 0:01:30]} Nh5 {[%emt 0:12:30] C41: Philidor Defence} (8... Nxd4 $11 9. Qxd4 Be6 (9... a6 10. f3 b5 11. g4 c5 12. Qd2 b4 13. Nd5 Nxd5 14. exd5 Bf6 15. Bd3 Re8 16. Rhe1 Rxe1 17. Rxe1 {1-0 (32) Dominguez Perez,L (2739)-Noritsyn,N (2473) chess.com INT 2017})) 9. Be3 {[%emt 0:00:30]} Nxd4 {[%emt 0:02:30]} 10. Qxd4 {[%emt 0:01:30]} Bg5 {[%emt 0:02:30]} ({Better is} 10... Nf6 $14) 11. f3 {[%emt 0:04:30]} Qf6 $146 {[%emt 0:02:30]} ({Predecessor:} 11... Bxe3+ 12. Qxe3 Be6 13. g4 Nf6 14. e5 {1-0 (26) Tomcik,M (1743)-Martinka,T Sliac 2011}) 12. Bxg5 {[%emt 0:02:30]} Qxg5+ {[%emt 0:00:30]} 13. Kb1 {[%emt 0:00:00]} Be6 {[%emt 0:01:30]} 14. g4 {[%emt 0:05:00]} Nf4 {[%emt 0:00:30]} 15. Qd2 {[%emt 0:09:30]} Qe5 {[%emt 0:00:30]} 16. Ne2 {[%emt 0:00:30]} Nxe2 {[%emt 0:00:30]} 17. Bxe2 {[%emt 0:00:00]} a5 {[%emt 0:02:30]} 18. Bd3 {[%emt 0:02:00]} f6 {[%emt 0:01:30]} 19. f4 {[%emt 0:05:30]} Qc5 {[%emt 0:00:30]} 20. f5 {[%emt 0:01:30]} Bf7 {[%emt 0:00:30]} 21. g5 {[%emt 0:00:30]} fxg5 {[%emt 0:03:30]} 22. Qxg5 {[%emt 0:00:30]} h6 {[%emt 0:02:30]} 23. Qg3 {[%emt 0:01:30]} Qe5 {[%emt 0:00:30]} 24. Qxe5 {[%emt 0:03:30]} dxe5 {[%emt 0:00:30]} 25. Rhg1 {[%emt 0:00:30]} Kh7 {[%emt 0:01:30]} 26. Rg3 {[%emt 0:01:30]} Rad8 {[%emt 0:00:30]} 27. Rdg1 {[%emt 0:01:30]} Rg8 {[%emt 0:00:00]} 28. b3 {[%emt 0:00:30]} Rd6 {[%emt 0:05:00]} 29. Bc4 {[%emt 0:03:30]} Bxc4 {[%emt 0:01:30]} 30. bxc4 {[%emt 0:00:00]} Rd4 {[%emt 0:00:00]} 31. Rg6 {[%emt 0:01:00]} Rxe4 {[%emt 0:00:00]} 32. f6 {[%emt 0:04:30]} Re1+ {[%emt 0:00:30]} 33. Rxe1 {[%emt 0:00:00]} Kxg6 {[%emt 0:00:00]} 34. Rxe5 {[%emt 0:00:00]} gxf6 {[%emt 0:01:00]} 35. Rxa5 {[%emt 0:00:30]} Rg7 {[%emt 0:00:30]} 36. Kc1 {[%emt 0:00:30]} Rd7 {[%emt 0:00:30]} 37. Ra3 {[%emt 0:04:30]} f5 {[%emt 0:01:30]} 38. Rg3+ {[%emt 0:05:30]} Kf6 {[%emt 0:00:30]} 39. Rg8 {[%emt 0:03:30]} f4 {[%emt 0:03:30]} 40. Rf8+ {[%emt 0:00:30]} Ke5 {[%emt 0:02:30]} 41. Re8+ {[%emt 0:02:30]} Kf5 {[%emt 0:01:30]} 42. c5 {[%emt 0:00:30]} c6 {[%emt 0:00:30]} 43. Rf8+ {[%emt 0:01:10]} Ke4 {[%emt 0:02:30]} 44. Rf6 {[%emt 0:00:27]} h5 {[%emt 0:02:30]} 45. Rd6 {[%emt 0:00:34]} Rg7 {[%emt 0:00:30]} 46. Re6+ {[%emt 0:01:29]} Kf3 {[%emt 0:06:30]} 47. Kd2 {[%emt 0:00:56]} Kg2 {[%emt 0:01:30]} 48. Ke1 {[%emt 0:04:04]} f3 {[%emt 0:00:30]} 49. Rf6 {[%emt 0:00:07]} Re7+ {[%emt 0:00:30]} 50. Kd2 {[%emt 0:00:14]} Re5 {[%emt 0:01:30]} 51. h4 {[%emt 0:01:41]} f2 {[%emt 0:00:00]} 52. Rg6+ {[%emt 0:00:08]} Kf1 {[%emt 0:01:00]} 53. Rg7 {[%emt 0:00:23]} Rd5+ {[%emt 0:01:30]} 54. Kc1 {[%emt 0:00:20]} Rd4 {[%emt 0:00:30]} 55. Rxb7 {[%emt 0:00:55]} Kg2 {[%emt 0:00:30]} 56. Rg7+ {[%emt 0:00:10]} Rg4 {[%emt 0:00:30]} 0-1

[Event "4th Sabbiadoro-Master 2018"]
[Site "Lignano Sabbiadoro"]
[Date "2018.07.30"]
[Round "2.5"]
[White "Medici, Simone"]
[Black "Zuttioni, Federico"]
[Result "1-0"]
[ECO "E11"]
[WhiteElo "2286"]
[BlackElo "2141"]
[Annotator "NA"]
[PlyCount "77"]
[EventDate "2018.07.29"]
[EventType "swiss"]
[EventCountry "ITA"]
[SourceTitle "playchess.com"]
[Source "ChessBase"]
[SourceQuality "1"]
[TimeControl "5400+30"]

{[%evp 8,76,14,15,13,8,7,5,5,0,18,5,32767,32767,32767,-2,0,0,32767,-7,0,-5,0,0,0,0,32767,32767,32767,32767,32767,32767,32767,32767,32767,-2,0,32767,0,32767,32767,0,32767,0,0,0,0,-43,0,0,32767,0,32767,0,178,0,0,0,32767,0,0,0,0,32767,0,0,32767,32767,32767,0,0]} 1. d4 {[%emt 0:07:30]} Nf6 {[%emt 0:01:00]} 2. c4 {[%emt 0:00:30]} e6 {[%emt 0:00:30]} 3. Nf3 {[%emt 0:01:30]} Bb4+ {[%emt 0:01:30]} 4. Bd2 {[%emt 0:00:30]} Qe7 {[%emt 0:00:30]} 5. a3 {[%emt 0:02:30]} Bxd2+ {[%emt 0:00:30]} 6. Nbxd2 {[%emt 0:00:30]} d6 {[%emt 0:02:30]} 7. e4 {[%emt 0:09:30] LiveBook: 33 Games} e5 {[%emt 0:01:30]} 8. d5 {[%emt 0:18:30]} Bg4 {[%emt 0:09:30] E11: Bogo-Indian} (8... O-O 9. g3 a5 10. b4 Na6 11. Rb1 Bd7 12. Bd3 axb4 13. axb4 c5 14. dxc6 bxc6 15. O-O Rfb8 16. b5 Nc5 {0-1 (30) Lianes Garcia,M (2351)-Almagro Llamas,P (2483) Madrid 2018}) 9. h3 {[%emt 0:03:30]} Bxf3 {[%emt 0:07:30]} 10. Qxf3 {[%emt 0:00:30]} a5 {[%emt 0:09:30]} 11. Bd3 $146 {[%emt 0:08:30]} ({Predecessor:} 11. g4 a4 12. Bd3 h5 13. O-O-O Na6 14. Rdg1 h4 15. Qe3 Nd7 16. g5 {1-0 (27) Bergthorsson,J (2156)-Thorarinsson,P (2281) Reykjavik 2016}) 11... a4 {[%emt 0:07:30]} 12. O-O {[%emt 0:00:30]} Na6 {[%emt 0:04:30]} 13. Bc2 {[%emt 0:01:30]} Nc5 {[%emt 0:01:30]} 14. Rae1 {[%emt 0:02:30]} O-O {[%emt 0:06:30]} 15. Nb1 {[%emt 0:01:30]} c6 {[%emt 0:04:30]} 16. Nc3 {[%emt 0:01:30]} Ra6 {[%emt 0:04:30]} 17. Qd1 {[%emt 0:01:30]} Rfa8 {[%emt 0:02:30]} 18. Re2 {[%emt 0:02:30]} cxd5 {[%emt 0:04:30]} 19. exd5 {[%emt 0:02:30]} Nh5 {[%emt 0:00:30]} 20. g3 {[%emt 0:10:30]} Qg5 {[%emt 0:02:30]} 21. Kh2 {[%emt 0:06:35]} g6 {[%emt 0:04:30]} 22. Nb5 {[%emt 0:04:54]} Rb6 {[%emt 0:02:30]} 23. Qe1 {[%emt 0:04:18]} f5 {[%emt 0:14:55]} 24. f4 {[%emt 0:04:33]} exf4 {[%emt 0:00:24]} 25. gxf4 {[%emt 0:00:03]} Qf6 $1 {[%emt 0:02:56]} ({Natürlich nicht} 25... Nxf4 $6 26. Qd2 $14) 26. Qf2 {[%emt 0:01:54]} Rf8 {[%emt 0:01:29]} 27. Rfe1 {[%emt 0:01:31]} Ng7 {[%emt 0:02:53]} (27... Qxb2 $5 {[%cal Rb6b5]} 28. Bxa4 Qf6 $11) 28. Bb1 {[%emt 0:00:17]} Rf7 {[%emt 0:00:42]} 29. Nd4 {[%emt 0:01:05]} Ra6 {[%emt 0:00:36]} 30. Nf3 {[%emt 0:01:02]} h6 $2 {[%emt 0:00:20] [#]} (30... Rf8 $11 {and Black is okay.}) 31. Nd4 $2 {[%emt 0:00:34]} (31. Rg1 $1 $16) 31... Ra8 {[%emt 0:00:21]} 32. Re3 {[%emt 0:00:39]} Kh7 {[%emt 0:00:22]} 33. R3e2 {[%emt 0:00:23]} Raf8 {[%emt 0:00:18]} 34. Bc2 {[%emt 0:00:32]} Ra8 {[%emt 0:00:33]} 35. Bb1 {[%emt 0:00:30]} Raf8 {[%emt 0:00:18]} 36. Nb5 {[%emt 0:00:06]} Rd8 {[%emt 0:00:58]} 37. Qf3 {[%emt 0:00:17]} Qh4 {[%emt 0:00:47]} 38. Qg3 {[%emt 0:00:44]} Qf6 $11 {[%emt 0:00:18]} 39. Qf2 {[%emt 0:00:35]} 1-0

[Event "4th Sabbiadoro-Master 2018"]
[Site "Lignano Sabbiadoro"]
[Date "2018.07.30"]
[Round "2.6"]
[White "Calavalle, Giulio"]
[Black "Favilli, Edoardo"]
[Result "1-0"]
[ECO "C12"]
[WhiteElo "2275"]
[BlackElo "2116"]
[Annotator "ChessBase"]
[PlyCount "91"]
[EventDate "2018.07.29"]
[EventType "swiss"]
[EventCountry "ITA"]
[SourceTitle "playchess.com"]
[Source "ChessBase"]
[SourceQuality "1"]
[TimeControl "5400+30"]

1. e4 {[%emt 0:02:30]} e6 {[%emt 0:05:00]} 2. d4 {[%emt 0:00:30]} d5 {[%emt 0:00:00]} 3. Nc3 {[%emt 0:00:30]} Nf6 {[%emt 0:00:00]} 4. Bg5 {[%emt 0:00:30]} Bb4 {[%emt 0:00:30]} 5. e5 {[%emt 0:00:30]} h6 {[%emt 0:00:30]} 6. exf6 {[%emt 0:01:30]} hxg5 {[%emt 0:00:00]} 7. fxg7 {[%emt 0:00:00]} Rg8 {[%emt 0:01:00]} 8. h4 {[%emt 0:01:00]} gxh4 {[%emt 0:02:30]} 9. Qg4 {[%emt 0:01:30]} Qf6 {[%emt 0:05:30]} 10. O-O-O {[%emt 0:00:30]} Bd7 {[%emt 0:06:30]} 11. Qxh4 {[%emt 0:05:30]} Qxg7 {[%emt 0:01:30]} 12. g3 {[%emt 0:04:30]} Nc6 {[%emt 0:01:30]} 13. Nge2 {[%emt 0:04:30]} Be7 {[%emt 0:06:30]} 14. Qh7 {[%emt 0:06:30]} Qf8 {[%emt 0:03:30]} 15. Nf4 {[%emt 0:08:30]} O-O-O {[%emt 0:12:30]} 16. Bb5 {[%emt 0:13:30]} Rh8 {[%emt 0:17:30]} 17. Qd3 {[%emt 0:01:30]} Bg5 {[%emt 0:14:35]} 18. Kb1 {[%emt 0:05:30]} Qg7 {[%emt 0:07:08]} 19. Nh5 {[%emt 0:11:30]} Qg6 {[%emt 0:03:39]} 20. Bxc6 {[%emt 0:04:30]} Rxh5 {[%emt 0:05:10]} 21. Bxd7+ {[%emt 0:00:30]} Rxd7 {[%emt 0:04:55]} 22. Qxg6 {[%emt 0:08:37]} fxg6 {[%emt 0:00:37]} 23. Rxh5 {[%emt 0:00:30]} gxh5 {[%emt 0:00:00]} 24. Re1 {[%emt 0:00:00]} Re7 {[%emt 0:00:00]} 25. Ne2 {[%emt 0:00:17]} h4 {[%emt 0:00:24]} 26. f4 {[%emt 0:00:02]} Bf6 {[%emt 0:00:42]} 27. g4 {[%emt 0:00:30]} Rh7 {[%emt 0:00:47]} 28. g5 {[%emt 0:00:30]} Bg7 {[%emt 0:00:43]} 29. Rh1 {[%emt 0:00:30]} Kd7 {[%emt 0:00:53]} 30. Kc1 {[%emt 0:00:37]} Ke7 {[%emt 0:00:00]} 31. Kd2 {[%emt 0:00:46]} Kf7 {[%emt 0:00:30]} 32. Ke3 {[%emt 0:00:34]} c5 {[%emt 0:00:30]} 33. Rh3 {[%emt 0:00:35]} Kg6 {[%emt 0:00:30]} 34. c3 {[%emt 0:01:22]} cxd4+ {[%emt 0:00:02]} 35. cxd4 {[%emt 0:00:10]} Kf5 {[%emt 0:00:37]} 36. Kf3 {[%emt 0:01:14]} Rh8 {[%emt 0:00:01]} 37. Rh1 {[%emt 0:01:50]} Rc8 {[%emt 0:01:54]} 38. Nc3 {[%emt 0:03:50]} Bxd4 {[%emt 0:00:29]} 39. Nb5 {[%emt 0:00:18]} Bc5 {[%emt 0:00:21]} 40. Rxh4 {[%emt 0:03:08]} a6 {[%emt 0:00:18]} 41. Rh6 {[%emt 0:00:40]} Rf8 {[%emt 0:00:02]} 42. Nc7 {[%emt 0:01:27]} e5 {[%emt 0:00:43]} 43. Ne6 {[%emt 0:00:50]} e4+ {[%emt 0:01:23]} 44. Kg3 {[%emt 0:00:21]} Rf7 {[%emt 0:00:19]} 45. Ng7+ {[%emt 0:00:44]} Rxg7 {[%emt 0:00:17]} 46. Rf6# {[%emt 0:00:06]} 1-0

[Event "4th Sabbiadoro-Master 2018"]
[Site "Lignano Sabbiadoro"]
[Date "2018.07.30"]
[Round "2.7"]
[White "Peric, Slavisa"]
[Black "Bentivegna, Francesco"]
[Result "0-1"]
[ECO "D05"]
[WhiteElo "2109"]
[BlackElo "2271"]
[Annotator "NA"]
[PlyCount "62"]
[EventDate "2018.07.29"]
[EventType "swiss"]
[EventCountry "ITA"]
[SourceTitle "playchess.com"]
[Source "ChessBase"]
[SourceQuality "1"]
[TimeControl "5400+30"]

1. d4 {[%emt 0:00:30]} d5 {[%emt 0:19:00]} 2. Nf3 {[%emt 0:01:30]} Nf6 {[%emt 0:01:30]} 3. Nbd2 {[%emt 0:03:30]} c5 {[%emt 0:05:30]} 4. e3 {[%emt 0:04:30]} Nc6 {[%emt 0:02:30]} 5. c3 {[%emt 0:18:30]} e6 {[%emt 0:05:30]} 6. Bd3 {[%emt 0:00:00]} Bd6 {[%emt 0:00:30]} 7. O-O {[%emt 0:01:00]} O-O {[%emt 0:08:30]} 8. dxc5 {[%emt 0:01:30]} Bxc5 {[%emt 0:00:30] LiveBook: 238 Games} 9. e4 {[%emt 0:00:30]} Qc7 {[%emt 0:00:30]} 10. Qe2 {[%emt 0:02:30]} h6 {[%emt 0:00:30]} 11. a3 {[%emt 0:29:30] D05: Colle System with ...e6} (11. Bc2 Bb6 12. a4 a6 13. g3 Bd7 14. Kg2 Rad8 15. h3 e5 16. exd5 Nxd5 17. Nc4 Qc8 18. Rh1 Bc7 {½-½ (38) Mamedyarov,S (2660)-Volokitin,A (2652) Mallorca 2004 CBM 104 [Finkel,A]}) 11... Bd7 $146 {[%emt 0:07:30]} ({Predecessor:} 11... a5 12. b3 b6 13. Bb2 Nh5 14. g3 Nf6 15. c4 dxe4 16. Nxe4 Nxe4 17. Qxe4 f5 18. Qe2 e5 19. Bxe5 Nxe5 20. Qxe5 Qxe5 21. Nxe5 {1-0 (49) Tahbaz,A (2409)-Taalaibekov,T (2213) Shiraz 2017}) 12. b4 {[%emt 0:05:30]} Bd6 {[%emt 0:00:30]} 13. Bb2 {[%emt 0:05:30]} Ng4 {[%emt 0:04:30]} 14. h3 {[%emt 0:01:30]} Nge5 {[%emt 0:00:30]} 15. Nxe5 {[%emt 0:03:28]} Nxe5 {[%emt 0:00:30]} 16. Bb5 {[%emt 0:00:46]} Bxb5 {[%emt 0:07:30]} 17. Qxb5 {[%emt 0:01:10]} Nc4 {[%emt 0:00:30]} 18. Nxc4 {[%emt 0:00:42]} dxc4 {[%emt 0:00:30]} 19. Rad1 {[%emt 0:03:57]} Rfd8 {[%emt 0:03:30]} 20. Qa4 {[%emt 0:09:03]} a5 {[%emt 0:07:30]} 21. Qc2 {[%emt 0:00:30]} b5 {[%emt 0:01:30]} 22. Bc1 {[%emt 0:02:01]} axb4 {[%emt 0:05:02]} 23. axb4 {[%emt 0:00:09]} Bf4 {[%emt 0:00:06]} 24. g3 {[%emt 0:03:24]} Bxc1 {[%emt 0:02:19]} 25. Qxc1 {[%emt 0:00:10]} Rd3 {[%emt 0:00:17]} 26. Rxd3 {[%emt 0:00:35]} cxd3 {[%emt 0:00:01]} 27. Rd1 {[%emt 0:00:55]} Rd8 {[%emt 0:00:38]} 28. Qe3 {[%emt 0:01:10]} Qxc3 {[%emt 0:00:30]} 29. Qb6 {[%emt 0:00:30]} Rd4 {[%emt 0:00:30]} 30. Qxb5 {[%emt 0:00:30]} Qc2 {[%emt 0:00:30]} 31. Qb6 {[%emt 0:00:30]} Qc3 $11 {[%emt 0:00:30]} (31... Qxd1+ {mates} 32. Kg2 Qa1 33. b5 d2 34. Qa6 d1=Q 35. Qxa1 Qxa1 36. b6 Qe1 37. b7 Qxe4+ 38. Kh2 Qxb7 39. g4 Qf3 40. h4 Rxg4 41. h5 Qg2#) 0-1

[Event "4th Sabbiadoro-Master 2018"]
[Site "Lignano Sabbiadoro"]
[Date "2018.07.30"]
[Round "2.8"]
[White "Nester, Ihor"]
[Black "Bardone, Lorenzo"]
[Result "1-0"]
[ECO "A30"]
[WhiteElo "2305"]
[BlackElo "2103"]
[Annotator "NA"]
[PlyCount "79"]
[EventDate "2018.07.29"]
[EventType "swiss"]
[EventCountry "ITA"]
[SourceTitle "playchess.com"]
[Source "ChessBase"]
[SourceQuality "1"]
[TimeControl "5400+30"]

1. Nf3 c5 2. c4 Nc6 3. d4 cxd4 4. Nxd4 e5 {LiveBook: 127 Games} 5. Nc2 {A30: Symmetrical English: Double Fianchetto and Hedgehog} Bc5 6. Nc3 f5 $146 ({Predecessor:} 6... d6 7. g3 Be6 8. b3 Qd7 9. Be3 Nf6 10. Bxc5 dxc5 11. Qxd7+ Bxd7 12. Bg2 O-O-O {1-0 (36) Melkumyan,H (2664)-Kantans,T (2508) Batumi 2018}) 7. Be3 Bxe3 8. Nxe3 Nf6 (8... Nge7 $142) 9. Nxf5 O-O 10. e3 Qa5 (10... d5 $16 {was called for.}) 11. Nd6 e4 12. Qd2 Qe5 13. Be2 b6 14. O-O Rb8 15. Rad1 Kh8 16. a3 Nd8 17. Qd4 Qxd4 18. exd4 Ne6 19. Ncxe4 Nxe4 20. Nxe4 Nf4 21. Bf3 d5 22. cxd5 Ba6 23. Rfe1 Nxd5 24. Ng5 Nf4 25. Re7 Rbe8 26. Rxe8 Rxe8 27. Nf7+ Kg8 28. Ne5 Be2 29. Bxe2 Nxe2+ 30. Kf1 Nxd4 31. Rxd4 Rxe5 32. Rd8+ Kf7 33. Rd7+ Kf6 34. Rxa7 Rc5 35. g3 b5 $18 36. Ra5 Ke5 37. a4 Ke4 38. Rxb5 Rc4 39. b3 Rc2 40. Kg2 1-0

[Event "4th Sabbiadoro-Master 2018"]
[Site "Lignano Sabbiadoro"]
[Date "2018.07.30"]
[Round "2.10"]
[White "Sgnaolin, Davide"]
[Black "Grochowalski, Pawel"]
[Result "1/2-1/2"]
[ECO "D34"]
[WhiteElo "2267"]
[BlackElo "2049"]
[Annotator "NA"]
[PlyCount "78"]
[EventDate "2018.07.29"]
[EventType "swiss"]
[EventCountry "ITA"]
[SourceTitle "playchess.com"]
[Source "ChessBase"]
[SourceQuality "1"]
[TimeControl "5400+30"]

{[%evp 8,80,21,1,19,0,-3,12,30,28,24,27,20,35,53,53,52,34,34,31,57,47,32767,32767,32767,60,72,30,32767,55,39,38,31,29,45,31,33,22,33,32767,32767,32767,32767,32767,32767,32767,32767,32767,32767,32767,32767,32767,32767,32767,30,32767,32767,32767,32767,32767,32767,8,10,32767,32767,32767,8,32767,11,15,10,13,15,0,10]} 1. Nf3 {[%emt 0:00:30]} Nf6 {[%emt 0:01:00]} 2. g3 {[%emt 0:00:30]} d5 {[%emt 0:02:30]} 3. Bg2 {[%emt 0:00:30]} e6 {[%emt 0:00:30]} 4. c4 {[%emt 0:02:30]} Be7 {[%emt 0:00:30]} 5. b3 {[%emt 0:02:30]} O-O {[%emt 0:01:30]} 6. Bb2 {[%emt 0:00:30]} c5 {[%emt 0:03:30]} 7. cxd5 {[%emt 0:05:30]} exd5 {[%emt 0:00:30]} 8. d4 {[%emt 0:02:30]} Nc6 {[%emt 0:05:30]} 9. O-O {[%emt 0:01:30]} Be6 {[%emt 0:00:30] LiveBook: 14 Games} 10. Nc3 {[%emt 0:12:30]} h6 {[%emt 0:05:30]} 11. Rc1 {[%emt 0:02:30]} Rc8 {[%emt 0:03:30]} 12. dxc5 {[%emt 0:04:30]} Bxc5 {[%emt 0:00:30]} 13. Nb5 {[%emt 0:00:30] D34: Tarrasch Defence: 6 g3 Nf6 7 Bg2 Be7} (13. Na4 Bd6 14. Nc5 Qe7 15. Nxe6 fxe6 16. Nh4 Rfe8 17. Ng6 Qf7 18. Qd3 Nb4 19. Qb1 Rxc1 20. Rxc1 Ng4 {1-0 (35) Balashov,Y (2429)-Singer,H (2207) Katerini 2014}) 13... Be7 {[%emt 0:03:30]} 14. Nbd4 {[%emt 0:01:30]} Nxd4 {[%emt 0:00:30]} 15. Nxd4 {[%emt 0:03:30]} Bd7 $146 {[%emt 0:05:30]} ({Predecessor:} 15... Qd7 16. Nxe6 Rxc1 17. Nxf8 Rxd1 18. Nxd7 Rxf1+ 19. Kxf1 Nxd7 20. Bxd5 b6 {1-0 (38) Macedo,A (1995)-Almeida,C (1950) Natal 2010}) 16. Qd3 {[%emt 0:11:30]} Qa5 {[%emt 0:03:30]} 17. a4 {[%emt 0:05:30]} Rxc1 {[%emt 0:04:30]} 18. Rxc1 {[%emt 0:00:00]} Rc8 {[%emt 0:00:30]} 19. Rxc8+ {[%emt 0:07:00]} Bxc8 {[%emt 0:00:30]} 20. Bc3 {[%emt 0:02:30]} Bb4 {[%emt 0:03:30]} 21. Bxb4 {[%emt 0:00:30]} Qxb4 {[%emt 0:00:30]} 22. Nc2 {[%emt 0:03:30]} Qc5 {[%emt 0:00:30]} 23. e3 {[%emt 0:04:30]} Be6 {[%emt 0:00:30]} 24. Nd4 {[%emt 0:10:28]} a6 {[%emt 0:01:30]} 25. h3 {[%emt 0:01:51]} Kf8 {[%emt 0:00:30]} 26. Kh2 {[%emt 0:01:44]} Ke7 {[%emt 0:01:30]} 27. Nf5+ {[%emt 0:01:04]} Bxf5 {[%emt 0:02:30]} 28. Qxf5 {[%emt 0:00:03]} Qd6 {[%emt 0:03:30]} 29. Qc8 {[%emt 0:01:11]} Qb6 {[%emt 0:02:30]} 30. Qc3 {[%emt 0:01:01]} Qd6 {[%emt 0:05:30]} 31. Qd4 {[%emt 0:02:30]} a5 {[%emt 0:03:30]} 32. Bf3 {[%emt 0:01:03]} b6 {[%emt 0:00:30]} 33. Kg2 {[%emt 0:00:34]} g5 {[%emt 0:09:30]} 34. h4 {[%emt 0:02:09]} Qe6 {[%emt 0:00:30]} 35. hxg5 {[%emt 0:03:14]} hxg5 {[%emt 0:00:30]} 36. g4 {[%emt 0:00:30]} Ne4 {[%emt 0:00:30]} 37. b4 {[%emt 0:00:30]} axb4 $1 {[%emt 0:00:30]} 38. Qxb4+ {[%emt 0:00:30]} Qd6 39. Qd4 $11 Qe6 1/2-1/2

[Event "4th Sabbiadoro-Master 2018"]
[Site "Lignano Sabbiadoro"]
[Date "2018.07.30"]
[Round "3.1"]
[White "Brankovic, Dejan"]
[Black "Medici, Simone"]
[Result "1-0"]
[ECO "A05"]
[WhiteElo "2377"]
[BlackElo "2286"]
[Annotator "NA"]
[PlyCount "105"]
[EventDate "2018.07.29"]
[EventType "swiss"]
[EventCountry "ITA"]
[SourceTitle "playchess.com"]
[Source "ChessBase"]
[SourceQuality "1"]
[TimeControl "5400+30"]

1. Nf3 {[%emt 0:00:30]} Nf6 {[%emt 0:02:00]} 2. g3 {[%emt 0:00:00]} b6 {[%emt 0:01:30]} 3. Bg2 {[%emt 0:00:00]} Bb7 {[%emt 0:00:00]} 4. O-O {[%emt 0:01:30]} e6 {[%emt 0:01:00]} 5. d3 {[%emt 0:00:30]} Be7 {[%emt 0:01:30]} 6. e4 {[%emt 0:01:30]} d6 {[%emt 0:05:30]} 7. Re1 {[%emt 0:04:30] A05: Réti Opening: 1 Nf3 Nf6} (7. Nbd2 c5 8. Qe2 O-O 9. Ng5 Nfd7 10. Nh3 Nc6 11. f4 b5 12. Nf3 Rc8 13. c3 b4 14. c4 Nd4 15. Nxd4 cxd4 {0-1 (46) Jenni,F (2454)-Nayhebaver,M (2440) Balatonszarszo 2017}) 7... O-O {[%emt 0:00:30]} 8. Nbd2 {[%emt 0:01:30]} Nbd7 {[%emt 0:03:30]} 9. d4 {[%emt 0:14:30]} e5 {[%emt 0:05:30]} 10. dxe5 $146 {[%emt 0:11:30]} ({Predecessor:} 10. b3 Re8 11. d5 a5 12. c4 c6 13. dxc6 Bxc6 14. Qc2 Nc5 15. Bb2 {1-0 (53) Goluch,P (2288)-Bilych,O (1967) Lvov 2017}) 10... dxe5 {[%emt 0:04:30]} 11. Nh4 {[%emt 0:03:30]} Re8 {[%emt 0:04:30]} 12. Nf5 {[%emt 0:03:30]} Bf8 {[%emt 0:03:30]} 13. Nc4 {[%emt 0:04:30]} Nc5 {[%emt 0:04:30]} 14. Qxd8 {[%emt 0:04:30]} Raxd8 {[%emt 0:01:30]} 15. Bg5 {[%emt 0:01:30]} Ncd7 {[%emt 0:14:30]} 16. Rad1 {[%emt 0:02:30]} Rb8 {[%emt 0:14:30]} 17. f3 {[%emt 0:02:30]} h6 {[%emt 0:00:30]} 18. Bd2 {[%emt 0:01:30]} Kh7 {[%emt 0:02:30]} 19. Bh3 {[%emt 0:06:30]} Bc8 {[%emt 0:07:30]} 20. b4 {[%emt 0:02:30]} a5 {[%emt 0:01:30]} 21. a3 {[%emt 0:03:30]} axb4 {[%emt 0:03:11]} 22. axb4 {[%emt 0:00:00]} b5 {[%emt 0:01:28]} 23. Na5 {[%emt 0:04:00]} c5 {[%emt 0:01:07]} 24. c3 {[%emt 0:01:30]} Nb6 {[%emt 0:02:12]} 25. Bf1 {[%emt 0:04:54]} g6 {[%emt 0:05:38]} 26. Ne3 {[%emt 0:08:21]} c4 {[%emt 0:00:40]} 27. Ra1 {[%emt 0:03:15]} Bd7 {[%emt 0:00:29]} 28. Red1 {[%emt 0:00:19]} Red8 {[%emt 0:02:38]} 29. Be1 {[%emt 0:00:16]} Be7 {[%emt 0:02:28]} 30. Rd2 {[%emt 0:01:10]} Be8 {[%emt 0:01:16]} 31. Rad1 {[%emt 0:02:08]} Rxd2 {[%emt 0:00:25]} 32. Rxd2 {[%emt 0:00:08]} Rd8 {[%emt 0:01:41]} 33. Rxd8 {[%emt 0:01:19]} Bxd8 {[%emt 0:00:01]} 34. Nb7 {[%emt 0:01:00]} Bc7 {[%emt 0:01:16]} 35. Bh3 {[%emt 0:02:01]} Bc6 {[%emt 0:01:36]} 36. Na5 {[%emt 0:00:49]} Ba8 {[%emt 0:01:02]} 37. Nc2 {[%emt 0:00:15]} Ne8 {[%emt 0:00:16]} 38. Kf2 {[%emt 0:01:33]} Nd6 {[%emt 0:00:14]} 39. Ke2 {[%emt 0:00:36]} Na4 {[%emt 0:00:33]} 40. Bd7 {[%emt 0:00:30]} Nb6 {[%emt 0:00:41]} 41. Bc6 {[%emt 0:00:19]} f6 {[%emt 0:00:56]} 42. Na3 {[%emt 0:00:38]} Bxc6 $16 {[%emt 0:00:38]} (42... Nbc8 $2 {[%emt 0:00:15]}) 43. Nxc6 {[%emt 0:00:45]} f5 {[%emt 0:00:30]} (43... Nbc8 $16 {is a better defense.}) 44. exf5 {[%emt 0:00:33]} ({But not} 44. Nxe5 $6 fxe4 45. fxe4 Nxe4) 44... gxf5 {[%emt 0:00:30]} 45. Bf2 {[%emt 0:00:50]} Nbc8 {[%emt 0:00:30]} 46. Bd4 {[%emt 0:00:45]} Kg6 {[%emt 0:00:30]} 47. Na7 $4 {[%emt 0:00:28]} (47. Nxe5+ $18 {and all is fine.} Kh5 48. Nc6) 47... Nxa7 $2 {[%emt 0:00:31]} (47... exd4 $19 48. Nxc8 d3+ 49. Kd2 Nxc8 50. Nxb5 Bb6) 48. Bxa7 {[%emt 0:00:01]} f4 {[%emt 0:00:29]} 49. g4 {[%emt 0:00:32]} Kg5 {[%emt 0:00:32]} 50. Bc5 {[%emt 0:00:51]} Nf7 {[%emt 0:00:30]} 51. Be7+ {[%emt 0:00:29]} Kg6 {[%emt 0:00:08]} 52. Nxb5 {[%emt 0:00:23]} Ng5 $18 {[%emt 0:00:45]} (52... Bb8 $142 53. Na3 h5 54. gxh5+ Kxh5 55. Nxc4 Kg6) 53. Bc5 {[%emt 0:00:00]} (53. Nxc7 $142 Kf7 54. Bxg5 hxg5 55. Na6) 1-0